fUSD/lending_fUSD_20250904
["ID","MTS","AMOUNT","RATE_DAILY","PERIOD"]
[383565271,1756990344522,-484.69,0.00027753,2]
[383565272,1756990344532,-471.21,0.00027753,2]
[383565273,1756990344541,-848.28,0.00027753,2]
[383565274,1756990344551,-400.0,0.00027753,2]
[383565275,1756990344560,-876.27,0.00027753,2]
[383565276,1756990344570,-137242.43,0.000278,7]
[383565277,1756990344579,-500.0,0.00027808,2]
[383565278,1756990344588,-1089.44,0.00027832,7]
[383565279,1756990344598,-1057.62,0.00027832,7]
[383565280,1756990344607,-382.31742268,0.00027945,2]
[383565281,1756990344616,-1300.0,0.00027945,7]
[383565282,1756990344626,-422.37,0.00027945,2]
[383565283,1756990344635,-492.66,0.00027945,2]
[383565284,1756990344645,-412.66,0.00027945,2]
[383565285,1756990344654,-761.63,0.00027945,2]
[383565286,1756990344665,-1219.37,0.00027945,2]
[383565287,1756990344675,-661.99,0.00027945,2]
[383565288,1756990344684,-575.08,0.00027945,2]
[383565289,1756990344693,-411.91,0.00027945,2]
[383565290,1756990344703,-402.8,0.00027945,2]
[383565291,1756990344713,-400.0,0.00027945,2]
[383565292,1756990344723,-414.4,0.00027945,2]
[383565293,1756990344732,-557.49,0.00027945,2]
[383565294,1756990344742,-463.59,0.00027945,2]
[383565295,1756990344753,-423.94,0.00027945,2]
[383565296,1756990344763,-495.23,0.00027945,2]
[383565297,1756990344774,-565.94,0.00027945,2]
[383565298,1756990344784,-466.1,0.00027945,2]
[383565299,1756990344795,-456.03,0.00027945,2]
[383565300,1756990344805,-945.14,0.00027945,2]
[383565301,1756990344814,-953.11,0.00027945,2]
[383565302,1756990344823,-821.03,0.00027945,2]
[383565303,1756990344832,-1693.2,0.00027945,2]
[383565304,1756990344842,-1079.3,0.00027945,2]
[383565305,1756990344851,-624.18,0.00027945,2]
[383565306,1756990344861,-2782.05,0.00027945,2]
[383565307,1756990344870,-725.37,0.00027945,2]
[383565308,1756990344880,-421.94,0.00027945,2]
[383565309,1756990344891,-685.21,0.00027945,2]
[383565310,1756990344902,-931.71,0.00027945,2]
[383565311,1756990344911,-1587.17,0.00027945,2]
[383565312,1756990344920,-2135.57,0.00027945,2]
[383565313,1756990344928,-1227.09,0.00027945,2]
[383565314,1756990344941,-625.05,0.00027945,2]
[383565315,1756990344949,-474.56,0.00027945,2]
[383565316,1756990344957,-749.93,0.00027945,2]
[383565317,1756990344966,-638.66,0.00027945,2]
[383565318,1756990344975,-508.97,0.00027945,2]
[383565319,1756990344983,-1070.95,0.00027945,2]
[383565320,1756990344992,-3593.96,0.00027945,2]
[383565321,1756990345001,-2175.07,0.00027945,2]
[383565322,1756990345010,-3019.97,0.00027945,2]
[383565323,1756990345018,-2082.36,0.00027945,2]
[383565324,1756990345028,-970.38,0.00027945,2]
[383565325,1756990345037,-754.51,0.00027945,2]
[383565326,1756990345046,-2243.08,0.00027945,2]
[383565327,1756990345055,-1127.96,0.00027945,2]
[383565328,1756990345065,-1735.62,0.00027945,2]
[383565329,1756990345074,-1045.07,0.00027945,2]
[383565330,1756990345083,-731.72,0.00027945,2]
[383565331,1756990345092,-998.96,0.00027945,2]
[383565332,1756990345102,-709.73,0.00027945,2]
[383565333,1756990345111,-2831.28,0.00027945,2]
[383565334,1756990345120,-3039.71,0.00027945,2]
[383565335,1756990345129,-898.29,0.00027945,2]
[383565336,1756990345139,-1689.73,0.00027945,2]
[383565337,1756990345148,-454.51,0.00027945,2]
[383565338,1756990345157,-449.75,0.00027945,2]
[383565339,1756990345166,-402.85,0.00027945,2]
[383565340,1756990345175,-435.81,0.00027945,2]
[383565341,1756990345184,-579.58,0.00027945,2]
[383565342,1756990345193,-996.93,0.00027945,2]
[383565343,1756990345203,-1061.82,0.00027945,2]
[383565344,1756990345211,-608.48,0.00027945,2]
[383565345,1756990345220,-1216.81,0.00027945,2]
[383565346,1756990345229,-2520.02,0.00027945,2]
[383565347,1756990345237,-1569.91,0.00027945,2]
[383565348,1756990345245,-1782.09,0.00027945,2]
[383565349,1756990345253,-1565.66,0.00027945,2]
[383565350,1756990345262,-967.5,0.00027945,2]
[383565351,1756990345271,-1736.13,0.00027945,2]
[383565352,1756990345280,-841.07,0.00027945,2]
[383565353,1756990345289,-941.19,0.00027945,2]
[383565354,1756990345298,-656.44,0.00027945,2]
[383565355,1756990345308,-1999.99,0.00027945,2]
[383565356,1756990345317,-1565.3,0.00027945,2]
[383565357,1756990345327,-1135.36,0.00027945,2]
[383565358,1756990345336,-455.15,0.00027945,2]
[383565359,1756990345345,-3100.45,0.00027945,2]
[383565360,1756990345354,-708.51,0.00027945,2]
[383565361,1756990345363,-945.65,0.00027945,2]
[383565362,1756990345372,-742.75,0.00027945,2]
[383565363,1756990345381,-459.56,0.00027945,2]
[383565364,1756990345391,-250.0,0.00027945,5]
[383565365,1756990345400,-278.96,0.00028,2]
[383565366,1756990345409,-514.64478986,0.00028,30]
[383565367,1756990345418,-160.0,0.00028,30]
[383565368,1756990345428,-160.0,0.00028,30]
[383565369,1756990345436,-160.0,0.00028,3]
[383565370,1756990345444,-3010.21128815,0.00028,30]
[383565371,1756990345453,-212.59699798,0.00028,30]
[383565372,1756990345461,-160.0,0.00028,30]
[383565373,1756990345469,-162.0,0.00028,14]
[383565374,1756990345477,-400.0,0.00028027,2]
[383565375,1756990345485,-6679.88,0.00028027,2]
[383565376,1756990345493,-956.54,0.00028027,2]
[383565377,1756990345501,-484.69,0.00028027,2]
[383565378,1756990345510,-471.21,0.00028027,2]
[383565379,1756990345520,-848.28,0.00028027,2]
[383565380,1756990345529,-285.80275509,0.00028027,2]
[383565381,1756990345537,-876.27,0.00028027,2]
[383565382,1756990345547,-8862.83918644,0.000281,2]
[383565383,1756990345556,-206.0,0.0002811,2]
[383565384,1756990345565,-600.0,0.00028138,2]
[383565385,1756990345574,-262.5,0.00028189,15]
[383565386,1756990345583,-422.43912489,0.00028219,2]
[383565387,1756990345592,-492.75416616,0.00028219,2]
[383565388,1756990345609,-412.76022996,0.00028219,2]
[383565389,1756990345628,-761.69104937,0.00028219,2]
[383565390,1756990345648,-1219.51645608,0.00028219,2]
[383565391,1756990345669,-662.17527644,0.00028219,2]
[383565392,1756990345687,-575.27306265,0.00028219,2]
[383565393,1756990345706,-412.11,0.00028219,2]
[383565394,1756990345725,-403.01801114,0.00028219,2]
[383565395,1756990345746,-310.81861145,0.00028219,2]
[383565396,1756990345767,-414.62936645,0.00028219,2]
[383565397,1756990345787,-557.71525592,0.00028219,2]
[383565398,1756990345806,-463.75834313,0.00028219,2]
[383565399,1756990345823,-424.0164974,0.00028219,2]
[383565400,1756990345841,-495.28537731,0.00028219,2]
[383565401,1756990345857,-566.07011751,0.00028219,2]
[383565402,1756990345874,-466.12869104,0.00028219,2]
[383565403,1756990345889,-456.05181105,0.00028219,2]
[383565404,1756990345909,-945.22618306,0.00028219,2]
[383565405,1756990345925,-953.26561778,0.00028219,2]
[383565406,1756990345942,-821.1835746,0.00028219,2]
[383565407,1756990345958,-1693.21883126,0.00028219,2]
[383565408,1756990345974,-1079.46191811,0.00028219,2]
[383565409,1756990345991,-624.27971697,0.00028219,2]
[383565410,1756990346007,-2782.18293983,0.00028219,2]
[383565411,1756990346022,-725.37721125,0.00028219,2]
[383565412,1756990346039,-422.1166098,0.00028219,2]
[383565413,1756990346055,-685.4489996,0.00028219,2]
[383565414,1756990346071,-931.93302621,0.00028219,2]
[383565415,1756990346087,-1587.33,0.00028219,2]
[383565416,1756990346102,-2135.76,0.00028219,2]
[383565417,1756990346119,-1227.32137917,0.00028219,2]
[383565418,1756990346136,-625.11104439,0.00028219,2]
[383565419,1756990346152,-474.78423312,0.00028219,2]
[383565420,1756990346169,-750.05168588,0.00028219,2]
[383565421,1756990346184,-638.73254196,0.00028219,2]
[383565422,1756990346200,-509.09317232,0.00028219,2]
[383565423,1756990346214,-1071.01497669,0.00028219,2]
[383565424,1756990346228,-3594.19182581,0.00028219,2]
[383565425,1756990346245,-2175.14615276,0.00028219,2]
[383565426,1756990346260,-3020.06894066,0.00028219,2]
[383565427,1756990346277,-2082.46,0.00028219,2]
[383565428,1756990346292,-970.56331618,0.00028219,2]
[383565429,1756990346306,-754.65409756,0.00028219,2]
[383565430,1756990346320,-2243.15088623,0.00028219,2]
[383565431,1756990346334,-1128.06306809,0.00028219,2]
[383565432,1756990346348,-1735.65265978,0.00028219,2]
[383565433,1756990346364,-1045.10892543,0.00028219,2]
[383565434,1756990346380,-731.89396415,0.00028219,2]
[383565435,1756990346394,-999.05355452,0.00028219,2]
[383565436,1756990346408,-709.89413716,0.00028219,2]
[383565437,1756990346422,-2831.4737756,0.00028219,2]
[383565438,1756990346436,-898.49072005,0.00028219,2]
[383565439,1756990346450,-3039.77818352,0.00028219,2]
[383565440,1756990346464,-1689.7347141,0.00028219,2]
[383565441,1756990346477,-454.52867745,0.00028219,2]
[383565442,1756990346492,-449.90160815,0.00028219,2]
[383565443,1756990346506,-402.99447424,0.00028219,2]
[383565444,1756990346521,-435.97237184,0.00028219,2]
[383565445,1756990346535,-579.62963384,0.00028219,2]
[383565446,1756990346550,-997.12962924,0.00028219,2]
[383565447,1756990346565,-1061.92271407,0.00028219,2]
[383565448,1756990346580,-608.6769997,0.00028219,2]
[383565449,1756990346595,-1217.02431969,0.00028219,2]
[383565450,1756990346610,-2520.04779369,0.00028219,2]
[383565451,1756990346624,-1569.95869969,0.00028219,2]
[383565452,1756990346639,-1782.10969211,0.00028219,2]
[383565453,1756990346654,-1565.73858613,0.00028219,2]
[383565454,1756990346669,-967.68118873,0.00028219,2]
[383565455,1756990346684,-1736.24460327,0.00028219,2]
[383565456,1756990346701,-841.15844096,0.00028219,2]
[383565457,1756990346716,-941.28707622,0.00028219,2]
[383565458,1756990346731,-656.66347581,0.00028219,2]
[383565459,1756990346745,-2000.02862112,0.00028219,2]
[383565460,1756990346760,-1565.50660277,0.00028219,2]
[383565461,1756990346774,-1135.40503965,0.00028219,2]
[383565462,1756990346790,-455.27361579,0.00028219,2]
[383565463,1756990346804,-3100.4791596,0.00028219,2]
[383565464,1756990346825,-708.67657923,0.00028219,2]
[383565465,1756990346840,-945.7154377,0.00028219,2]
[383565466,1756990346857,-742.93424698,0.00028219,2]
[383565467,1756990346875,-459.79314604,0.00028219,2]
[383565468,1756990346891,-10190.33947938,0.00028231,9]
[383565469,1756990346908,-188.33806215,0.00028301,2]
[383565470,1756990346923,-6680.07592417,0.00028301,2]
[383565471,1756990346941,-956.63672524,0.00028301,2]
[383565472,1756990346956,-484.74362698,0.00028301,2]
[383565473,1756990346972,-471.26794346,0.00028301,2]
[383565474,1756990346988,-848.44578623,0.00028301,2]
[383565475,1756990347003,-876.40079495,0.00028301,2]
[383565476,1756990347019,-332.60791905,0.00028475,2]
[383565477,1756990347035,-350.0,0.00028493,5]
[383565478,1756990347051,-4089.07,0.000285,7]
[383565479,1756990347066,-957.0,0.000285,2]
[383565480,1756990347080,-1069.54,0.000286,30]
[383565481,1756990347096,-600.0,0.00028686,2]
[383565482,1756990347113,-12956.70649132,0.0002876,2]
[383565483,1756990347128,-1180.82407991,0.0002876,2]
[383565484,1756990347143,-150.0,0.00028767,2]
[383565485,1756990347158,-2000.0,0.000288,2]
[383565486,1756990347173,-171.54142031,0.00028808,2]
[383565487,1756990347188,-1841.8394371,0.000289,2]
[383565488,1756990347202,-599.0,0.00028959,2]
[383565489,1756990347218,-51064.15672455,0.00029,2]
[383565490,1756990347233,-229987.60669281,0.00029,2]
[383565491,1756990347248,-1878.2726548,0.00029,2]
[383565492,1756990347262,-1244.58,0.00029,7]
[383565493,1756990347277,-1632.145377,0.00029,2]
[383565494,1756990347294,-500.0,0.00029041,7]
[383565495,1756990347311,-450.0,0.00029041,5]
[383565496,1756990347325,-137242.43,0.000291,7]
[383565497,1756990347340,-160.21715652,0.00029117,2]
[383565498,1756990347356,-151.0,0.00029148,3]
[383565499,1756990347372,-206.0,0.000292,2]
[383565500,1756990347388,-600.0,0.00029234,2]
[383565501,1756990347404,-4609.0,0.00029236,2]
[383565502,1756990347421,-10190.33947938,0.00029341,11]
[383565503,1756990347436,-1500.0,0.000295,2]
[383565504,1756990347453,-1077.28,0.00029514,2]
[383565505,1756990347468,-511.0,0.0002954,4]
[383565506,1756990347484,-1300.0,0.00029589,7]
[383565507,1756990347500,-4615.3,0.00029589,15]
[383565508,1756990347516,-4615.3,0.00029589,15]
[383565509,1756990347531,-4615.3,0.00029589,15]
[383565510,1756990347546,-4615.3,0.00029589,15]
[383565511,1756990347562,-550.0,0.00029589,5]
[383565512,1756990347578,-203.37618677,0.00029646,2]
[383565513,1756990347592,-935.0,0.0002969,2]
[383565514,1756990347607,-36008.5908235,0.00029746,7]
[383565515,1756990347621,-415.42027649,0.00029746,7]
[383565516,1756990347636,-235163.20040635,0.00029746,7]
[383565517,1756990348953,-403.25858234,0.00021917,2]
[383565518,1756990348963,-400.0,0.00021917,2]
[383565519,1756990348973,-585.53,0.00021917,2]
[383565520,1756990348983,-585.53,0.00022191,2]
[383565521,1756990348992,-585.53,0.00022465,2]
[383565522,1756990349002,-400.0,0.00022739,2]
[383565523,1756990349011,-253.22997409,0.00022739,2]
[383565524,1756990349022,-332.30002591,0.00022739,2]
[383565525,1756990349033,-400.0,0.00023013,2]
[383565526,1756990349042,-585.53,0.00023013,2]
[383565527,1756990349052,-585.53,0.00023287,2]
[383565528,1756990349062,-1406.95202047,0.00023835,2]
[383565529,1756990349085,-585.53,0.00023561,2]
[383565530,1756990349095,-1090.81797953,0.00023835,2]
[383565531,1756990349106,-400.0,0.00023917,2]
[383565532,1756990349115,-2955.68,0.00024109,2]
[383565533,1756990349124,-1499.58,0.00024109,2]
[383565534,1756990349134,-2497.77,0.00024109,2]
[383565535,1756990349144,-400.0,0.00024191,2]
[383565536,1756990349153,-1499.58,0.00024383,2]
[383565537,1756990349163,-2955.68,0.00024383,2]
[383565538,1756990349173,-2497.77,0.00024383,2]
[383565539,1756990349183,-400.0,0.00024465,2]
[383565540,1756990349193,-1499.58,0.00024657,2]
[383565541,1756990349203,-2955.68,0.00024657,2]
[383565542,1756990349212,-2497.77,0.00024657,2]
[383565543,1756990349222,-435.792356,0.00024658,7]
[383565544,1756990349231,-630.683635,0.00024658,7]
[383565545,1756990349241,-1059.930732,0.00024658,7]
[383565546,1756990349251,-435.792356,0.00024658,7]
[383565547,1756990349260,-630.683635,0.00024658,7]
[383565548,1756990349269,-125.68376887,0.00024658,7]
[383565549,1756990349281,-934.24696313,0.00024658,7]
[383565550,1756990349290,-435.792356,0.00024658,7]
[383565551,1756990349300,-1059.930732,0.00024658,7]
[383565552,1756990349309,-630.683635,0.00024658,7]
[383565553,1756990349319,-435.792356,0.00024658,7]
[383565554,1756990349328,-1059.930732,0.00024658,7]
[383565555,1756990349338,-60.99903787,0.00024658,7]
[383565556,1756990349361,-524.68431067,0.00024658,7]
[383565557,1756990349588,-585.53,0.00023835,2]
[383565558,1756990349598,-45.00028646,0.00024658,7]
[383565559,1756990349607,-1059.930732,0.00024658,7]
[383565560,1756990349617,-16.93343756,0.00024658,7]
[383565561,1756990350103,-585.53,0.00024109,2]
[383565562,1756990350113,-585.53,0.00024383,2]
[383565563,1756990350123,-166.53,0.00024573,2]
[383565564,1756990350133,-585.53,0.00024657,2]
[383565565,1756990350143,-613.75020244,0.00024658,7]
[383565566,1756990350152,-435.792356,0.00024658,7]
[383565567,1756990350161,-1059.930732,0.00024658,7]
[383565568,1756990350172,-435.792356,0.00024658,7]
[383565569,1756990350181,-1059.930732,0.00024658,7]
[383565570,1756990350190,-435.792356,0.00024658,7]
[383565571,1756990350199,-1059.930732,0.00024658,7]
[383565572,1756990350208,-435.792356,0.00024658,7]
[383565573,1756990350218,-1059.930732,0.00024658,7]
[383565574,1756990350228,-435.792356,0.00024658,7]
[383565575,1756990350237,-1059.930732,0.00024658,7]
[383565576,1756990350247,-435.792356,0.00024658,7]
[383565577,1756990350256,-1059.930732,0.00024658,7]
[383565578,1756990350266,-435.792356,0.00024658,7]
[383565579,1756990350275,-1059.930732,0.00024658,7]
[383565580,1756990350284,-435.792356,0.00024658,7]
[383565581,1756990350293,-151.0,0.00024658,7]
[383565582,1756990350303,-1059.930732,0.00024658,7]
[383565583,1756990350312,-435.792355,0.00024658,7]
[383565584,1756990350322,-151.0,0.00024658,7]
[383565585,1756990350331,-1059.930732,0.00024658,7]
[383565586,1756990350340,-151.0,0.00024658,7]
[383565587,1756990350349,-1059.930732,0.00024658,7]
[383565588,1756990350359,-151.0,0.00024658,7]
[383565589,1756990350368,-1059.930732,0.00024658,7]
[383565590,1756990350378,-1059.930732,0.00024658,7]
[383565591,1756990350386,-151.0,0.00024658,7]
[383565592,1756990350394,-1059.930732,0.00024658,7]
[383565593,1756990350401,-151.0,0.00024658,7]
[383565594,1756990350409,-1059.930723,0.00024658,7]
[383565595,1756990350418,-151.0,0.00024658,7]
[383565596,1756990350427,-400.0,0.00024739,2]
[383565597,1756990350435,-1499.58,0.00024931,2]
[383565598,1756990350443,-2955.68,0.00024931,2]
[383565599,1756990350451,-2497.77,0.00024931,2]
[383565600,1756990350460,-585.53,0.00024931,2]
[383565601,1756990350469,-400.0,0.00025013,2]
[383565602,1756990350477,-1096.63,0.00025014,2]
[383565603,1756990350487,-343.85,0.00025014,2]
[383565604,1756990350496,-2500.0,0.00025091,7]
[383565605,1756990350508,-1499.58,0.00025205,2]
[383565606,1756990350517,-2955.68,0.00025205,2]
[383565607,1756990350526,-2497.77,0.00025205,2]
[383565608,1756990350536,-585.53,0.00025205,2]
[383565609,1756990350546,-496.34679339,0.00025287,2]
[383565610,1756990350557,-1499.58,0.00025479,2]
[383565611,1756990350567,-2955.68,0.00025479,2]
[383565612,1756990350577,-2497.77,0.00025479,2]
[383565613,1756990350587,-585.53,0.00025479,2]
[383565614,1756990350596,-1499.58,0.00025753,2]
[383565615,1756990350606,-2955.68,0.00025753,2]
[383565616,1756990350616,-2497.77,0.00025753,2]
[383565617,1756990350625,-585.53,0.00025753,2]
[383565618,1756990350634,-1499.58,0.00026027,2]
[383565619,1756990350644,-2955.68,0.00026027,2]
[383565620,1756990350653,-2497.77,0.00026027,2]
[383565621,1756990350662,-585.53,0.00026027,2]
[383565622,1756990350673,-1499.58,0.00026301,2]
[383565623,1756990350682,-2955.68,0.00026301,2]
[383565624,1756990350690,-2497.77,0.00026301,2]
[383565625,1756990350700,-585.53,0.00026301,2]
[383565626,1756990350709,-1499.58,0.00026575,2]
[383565627,1756990350717,-2955.68,0.00026575,2]
[383565628,1756990350726,-2497.77,0.00026575,2]
[383565629,1756990350736,-1499.58,0.00026849,2]
[383565630,1756990350744,-2955.68,0.00026849,2]
[383565631,1756990350752,-929.04143445,0.00026849,2]
[383565632,1756990350770,-585.53,0.00026575,2]
[383565633,1756990350779,-1568.72856555,0.00026849,2]
[383565634,1756990350788,-464.38209956,0.00027123,2]
[383565635,1756990350810,-159.07656691,0.000219,2]
[383565636,1756990350818,-151.0,0.00024658,7]
[383565637,1756990350827,-1035.19790044,0.00027123,2]
[383565638,1756990350837,-2955.68,0.00027123,2]
[383565639,1756990350846,-1499.58,0.00027397,2]
[383565640,1756990350856,-791.1128881,0.00027397,2]
[383565641,1756990360381,400.0,0.00019302,2]
[383565642,1756990363552,-100.0,0.00019302,2]
[383565645,1756990452873,166.87,0.00013699,2]
[383565648,1756990499280,177.83,0.00010637,2]
[383565649,1756990499542,177.83,0.00014183,2]
[383565650,1756990499748,177.83,0.00017729,2]
[383565653,1756990549655,500.0,0.00030136,120]
[383565657,1756990600399,-200.0,0.00019201,2]
[383565665,1756990765252,159.6,0.00016515,2]
[383565666,1756990766314,160.0,0.00020644,7]
[383565669,1756990808715,150.94758534,0.00030136,120]
[383565676,1756991050273,-154.28184978,0.00018832,2]
[383565677,1756991062582,-171.8,0.00018832,2]
[383565678,1756991074655,-22.32247369,0.00018832,2]
[383565679,1756991074699,-123.35505262,0.00018841,2]
[383565680,1756991088312,-176.64494738,0.00018841,2]
[383565681,1756991088348,-46.71010524,0.00018848,2]
[383565682,1756991090044,250.0,0.00015,2]
[383565683,1756991096453,512.77526253,0.00030136,120]
[383565684,1756991100369,-400.0,0.00018848,2]
[383565685,1756991112489,-53.28989476,0.00018848,2]
[383565686,1756991112523,-290.35354075,0.00018848,2]
[383565687,1756991131765,-95.41823208,0.00018848,2]
[383565688,1756991131789,-209.16353584,0.00018848,2]
[383565689,1756991154455,-167.10586252,0.00018848,2]
[383565691,1756991358661,150.0,0.00018491,2]
[383565692,1756991389873,159.38,0.00010346,2]
[383565693,1756991389910,159.38,0.00011287,2]
[383565694,1756991390058,159.38,0.00012227,2]
[383565695,1756991390273,159.38,0.00013168,2]
[383565696,1756991390712,159.38,0.00014108,2]
[383565697,1756991390947,159.38,0.00015049,2]
[383565698,1756991391283,159.38,0.00015989,2]
[383565699,1756991391539,159.38,0.0001693,2]
[383565700,1756991391782,159.38,0.0001787,2]
[383565701,1756991422712,500.0,0.00030136,120]
[383565702,1756991424416,-16.70205076,0.00018811,2]
[383565703,1756991424438,-142.67794924,0.00018811,2]
[383565704,1756991431482,-282.02,0.0001883,2]
[383565706,1756991432133,-17.98,0.0001883,2]
[383565707,1756991432143,-300.0,0.00018849,2]
[383565708,1756991432152,-195.0,0.00018849,2]
[383565709,1756991432161,-189.74429692,0.00018988,2]
[383565710,1756991432173,-110.25570308,0.00018988,2]
[383565711,1756991432182,-159.38,0.00019752,2]
[383565712,1756991432193,-207.68,0.00020086,2]
[383565713,1756991432204,-281.52692057,0.00020086,2]
[383565714,1756991432297,-3601.63780843,0.00020086,2]
[383565715,1756991432307,-166.87,0.00020187,2]
[383565716,1756991432317,-1200.0,0.00020277,2]
[383565717,1756991432329,-767.92838466,0.00020278,2]
[383565718,1756991432340,-171.8,0.00020431,2]
[383565719,1756991432350,-156.1,0.000206,2]
[383565720,1756991432359,-159.38,0.00020692,2]
[383565721,1756991432370,-300.0,0.00020692,2]
[383565722,1756991432379,-193.0,0.00020692,2]
[383565723,1756991432388,-250.0,0.00020692,2]
[383565724,1756991432399,-300.0,0.00020733,2]
[383565725,1756991432408,-195.0,0.00020733,2]
[383565726,1756991432418,-2500.0,0.00020733,2]
[383565728,1756991432427,-250.0,0.00020733,2]
[383565729,1756991432436,-500.0,0.00020733,2]
[383565730,1756991432446,-250.0,0.00020733,2]
[383565731,1756991432455,-500.0,0.00020733,2]
[383565732,1756991432465,-154.74,0.00020762,2]
[383565733,1756991432474,-666.0,0.00020776,3]
[383565734,1756991432484,-252.99,0.00020883,2]
[383565735,1756991432493,-400.0,0.00020934,2]
[383565736,1756991432503,-19217.91620865,0.00021,2]
[383565737,1756991432512,-167.59,0.00021059,2]
[383565738,1756991432521,-239.86,0.00021199,2]
[383565739,1756991432531,-322.6107,0.00021345,2]
[383565740,1756991432542,-267.46074303,0.00021345,2]
[383565741,1756991432551,-151.0,0.00021345,2]
[383565742,1756991432562,-1000.0,0.000216,2]
[383565743,1756991432571,-3252.825,0.00021772,2]
[383565745,1756991432581,-910.789,0.00021772,2]
[383565747,1756991432590,-1237.556,0.00021772,2]
[383565749,1756991432600,-6163.0,0.00021772,2]
[383565751,1756991432608,-4163.0,0.00021772,2]
[383565753,1756991432618,-21149.0,0.00021772,2]
[383565755,1756991432627,-3052.0,0.00021772,2]
[383565758,1756991432636,-400.0,0.00021817,2]
[383565760,1756991432646,-4324.09163726,0.00021817,2]
[383565762,1756991432655,-155.29303732,0.00021893,2]
[383565763,1756991432664,-617.84,0.000219,2]
[383565766,1756991432674,-159.07656691,0.000219,2]
[383565768,1756991432683,-400.0,0.00021917,2]
[383565770,1756991432692,-400.0,0.00021917,2]
[383565772,1756991432701,-402.56989809,0.00021917,2]
[383565774,1756991432711,-400.0,0.00021917,2]
[383565775,1756991432721,-400.0,0.00021917,2]
[383565776,1756991432731,-400.0,0.00021917,2]
[383565777,1756991432740,-400.0,0.00021917,2]
[383565778,1756991432749,-400.0,0.00021917,2]
[383565779,1756991432759,-400.0,0.00021917,2]
[383565780,1756991432768,-400.0,0.00021917,2]
[383565781,1756991432777,-401.87753654,0.00021917,2]
[383565782,1756991432786,-402.45657267,0.00021917,2]
[383565783,1756991432796,-400.0,0.00021917,2]
[383565784,1756991432805,-400.0,0.00021917,2]
[383565785,1756991432814,-400.0,0.00021917,2]
[383565786,1756991432824,-400.0,0.00021917,2]
[383565787,1756991432833,-400.0,0.00021917,2]
[383565788,1756991432843,-403.63119384,0.00021917,2]
[383565789,1756991432852,-400.0,0.00021917,2]
[383565790,1756991432861,-400.0,0.00021917,2]
[383565791,1756991432871,-400.0,0.00021917,2]
[383565792,1756991432880,-400.0,0.00021917,2]
[383565793,1756991432889,-403.06666973,0.00021917,2]
[383565794,1756991432899,-400.0,0.00021917,2]
[383565795,1756991432908,-400.0,0.00021917,2]
[383565796,1756991432918,-400.0,0.00021917,2]
[383565797,1756991432927,-400.0,0.00021917,2]
[383565798,1756991432936,-400.0,0.00021917,2]
[383565799,1756991432946,-400.0,0.00021917,2]
[383565800,1756991432955,-400.0,0.00021917,2]
[383565801,1756991432965,-400.0,0.00021917,2]
[383565802,1756991432974,-400.0,0.00021917,2]
[383565803,1756991432983,-403.29727399,0.00021917,2]
[383565804,1756991432992,-400.0,0.00021917,2]
[383565805,1756991433001,-400.0,0.00021917,2]
[383565806,1756991433012,-400.0,0.00021917,2]
[383565807,1756991433021,-400.0,0.00021917,2]
[383565808,1756991433031,-400.0,0.00021917,2]
[383565809,1756991433041,-400.0,0.00021917,2]
[383565810,1756991433051,-400.0,0.00021917,2]
[383565811,1756991433060,-400.0,0.00021917,2]
[383565812,1756991433069,-400.0,0.00021917,2]
[383565813,1756991433079,-404.82811736,0.00021917,2]